[Event "Live Chess"]
[Site "Chess.com"]
[Date "2023.09.16"]
[Round "-"]
[White "KiwiDoFbi"]
[Black "danilo655"]
[Result "1-0"]
[WhiteElo "1310"]
[BlackElo "750"]
[TimeControl "900+5"]
[EndTime "7:58:40 PDT"]
[Termination "KiwiDoFbi venceu por desistência"]

1. e4 {[%clk 0:15:03.2]} 1... c5 {[%clk 0:14:58.4]} 2. Nf3 {[%clk 0:15:06]} 2...
Nc6 {[%clk 0:15:01.4]} 3. d4 {[%clk 0:15:10.6]} 3... cxd4 {[%clk 0:15:04.4]} 4.
Nxd4 {[%clk 0:15:15.2]} 4... g6 {[%clk 0:15:05.1]} 5. Nc3 {[%clk 0:15:13.5]}
5... Bg7 {[%clk 0:15:07.7]} 6. Be3 {[%clk 0:15:16.6]} 6... Nf6 {[%clk
0:15:05.3]} 7. f3 {[%clk 0:15:18.5]} 7... e6 {[%clk 0:14:26.2]} 8. Qd2 {[%clk
0:14:53.9]} 8... O-O {[%clk 0:14:25.2]} 9. Bc4 {[%clk 0:14:43.3]} 9... d5 {[%clk
0:14:24.4]} 10. exd5 {[%clk 0:14:46.3]} 10... exd5 {[%clk 0:14:23.8]} 11. Bb3
{[%clk 0:14:38.3]} 11... Re8 {[%clk 0:14:02.9]} 12. O-O-O {[%clk 0:14:42.2]}
12... Be6 {[%clk 0:12:58.8]} 13. Bg5 {[%clk 0:14:21.8]} 13... h6 {[%clk
0:12:58.1]} 14. Bxf6 {[%clk 0:14:21.9]} 14... Bxf6 {[%clk 0:12:54.3]} 15. Nxe6
{[%clk 0:14:26.1]} 15... Rxe6 {[%clk 0:12:51.3]} 16. Bxd5 {[%clk 0:14:24.8]}
16... Rd6 {[%clk 0:12:46.5]} 17. Bxf7+ {[%clk 0:14:27.5]} 17... Kxf7 {[%clk
0:12:44.2]} 18. Qxd6 {[%clk 0:14:31.9]} 18... Qxd6 {[%clk 0:11:42.8]} 19. Rxd6
{[%clk 0:14:35.4]} 19... Ke7 {[%clk 0:11:43.5]} 20. Rhd1 {[%clk 0:14:37.2]}
20... Be5 {[%clk 0:11:34.5]} 21. Rd7+ {[%clk 0:14:36.1]} 21... Ke6 {[%clk
0:11:35.6]} 22. Rxb7 {[%clk 0:14:32]} 22... Bd4 {[%clk 0:10:21]} 23. Nb5 {[%clk
0:14:31.8]} 23... Be3+ {[%clk 0:10:05.8]} 24. Kb1 {[%clk 0:14:34.8]} 24... Rc8
{[%clk 0:09:25.2]} 25. Rd6+ {[%clk 0:14:30.7]} 25... Ke5 {[%clk 0:09:23.8]} 26.
Rxg6 {[%clk 0:14:25.4]} 26... a6 {[%clk 0:09:12.2]} 27. Na7 {[%clk 0:14:20.8]}
27... Rd8 {[%clk 0:09:14.7]} 28. a3 {[%clk 0:14:23.1]} 28... Rd2 {[%clk
0:08:39.8]} 29. Nxc6+ {[%clk 0:14:23.6]} 29... Kf5 {[%clk 0:08:27.5]} 30. Rgg7
{[%clk 0:14:19.3]} 30... Rd1+ {[%clk 0:07:59.1]} 31. Ka2 {[%clk 0:14:22.5]}
31... Rd2 {[%clk 0:07:41.7]} 32. g4+ {[%clk 0:14:24.6]} 32... Ke6 {[%clk
0:07:38.8]} 33. Rge7+ {[%clk 0:14:25]} 33... Kd6 {[%clk 0:07:29.3]} 34. Rxe3
{[%clk 0:14:27.5]} 34... Kxc6 {[%clk 0:07:27.6]} 35. Rbe7 {[%clk 0:14:29.8]}
35... Rxc2 {[%clk 0:07:19.1]} 36. Rc3+ {[%clk 0:14:31.8]} 36... Rxc3 {[%clk
0:07:20.4]} 37. bxc3 {[%clk 0:14:35.9]} 37... Kc5 {[%clk 0:07:15.1]} 38. Kb3
{[%clk 0:14:37.4]} 38... Kb5 {[%clk 0:07:16.1]} 39. Re5+ {[%clk 0:14:41]} 39...
Kb6 {[%clk 0:07:18.1]} 40. Kb4 {[%clk 0:14:45.1]} 40... Kc6 {[%clk 0:07:07.3]}
41. Re6+ {[%clk 0:14:46.7]} 41... Kb7 {[%clk 0:07:10.3]} 42. Rxh6 {[%clk
0:14:50.5]} 42... Ka7 {[%clk 0:07:08]} 43. Kc5 {[%clk 0:14:52.1]} 43... Kb7
{[%clk 0:07:11.1]} 44. Rh7+ {[%clk 0:14:56.4]} 44... Kc8 {[%clk 0:07:05.2]} 45.
Kd6 {[%clk 0:14:59.9]} 45... Kb8 {[%clk 0:06:58.3]} 46. Kc6 {[%clk 0:15:03.7]}
1-0

[Event "Live Chess"]
[Site "Chess.com"]
[Date "2023.09.16"]
[Round "-"]
[White "AlphaKaua10"]
[Black "Torugomilho11"]
[Result "1-0"]
[WhiteElo "1138"]
[BlackElo "1158"]
[TimeControl "900+5"]
[EndTime "7:58:45 PDT"]
[Termination "AlphaKaua10 venceu por desistência"]

1. d4 {[%clk 0:15:02.7]} 1... d5 {[%clk 0:15:04.1]} 2. c4 {[%clk 0:15:06.1]}
2... e6 {[%clk 0:15:07.8]} 3. cxd5 {[%clk 0:15:09.2]} 3... exd5 {[%clk
0:15:11.8]} 4. Nf3 {[%clk 0:15:13.9]} 4... Nf6 {[%clk 0:15:15.1]} 5. g3 {[%clk
0:15:18.3]} 5... Nc6 {[%clk 0:15:16.8]} 6. Bg2 {[%clk 0:15:22.9]} 6... Bg4
{[%clk 0:15:21.1]} 7. O-O {[%clk 0:15:26.8]} 7... h5 {[%clk 0:15:23.9]} 8. Nc3
{[%clk 0:15:29.6]} 8... Bb4 {[%clk 0:15:26.8]} 9. Ne5 {[%clk 0:15:32.9]} 9...
Bxc3 {[%clk 0:15:19.2]} 10. bxc3 {[%clk 0:15:36.1]} 10... Nxe5 {[%clk
0:15:22.5]} 11. dxe5 {[%clk 0:15:40.4]} 11... Nd7 {[%clk 0:15:23.1]} 12. Bxd5
{[%clk 0:15:43.1]} 12... Nxe5 {[%clk 0:15:25.3]} 13. Bxb7 {[%clk 0:15:45.5]}
13... Rb8 {[%clk 0:15:26.9]} 14. Qxd8+ {[%clk 0:15:47.9]} 14... Rxd8 {[%clk
0:15:30.5]} 15. Bf3 {[%clk 0:15:48.2]} 15... Bxf3 {[%clk 0:15:29.2]} 16. exf3
{[%clk 0:15:52.2]} 16... Nxf3+ {[%clk 0:15:33.5]} 17. Kg2 {[%clk 0:15:56.4]}
17... Ne5 {[%clk 0:15:35.9]} 18. Re1 {[%clk 0:16:00.4]} 18... f6 {[%clk
0:15:39.3]} 19. Bf4 {[%clk 0:16:03.4]} 19... O-O {[%clk 0:15:41.9]} 20. Bxe5
{[%clk 0:16:06.7]} 20... fxe5 {[%clk 0:15:46.8]} 21. Rxe5 {[%clk 0:16:10.8]}
21... Rd3 {[%clk 0:15:49.9]} 22. Rc1 {[%clk 0:16:10.5]} 22... Rd2 {[%clk
0:15:52.4]} 23. Rf1 {[%clk 0:16:04.6]} 23... Rc2 {[%clk 0:15:55.2]} 24. Re7
{[%clk 0:16:06.5]} 24... Rxc3 {[%clk 0:15:58]} 25. f4 {[%clk 0:16:08.6]} 25...
Rc2+ {[%clk 0:16:01.4]} 26. Rf2 {[%clk 0:16:11.7]} 26... Rxf2+ {[%clk
0:16:04.9]} 27. Kxf2 {[%clk 0:16:16.1]} 27... Rc8 {[%clk 0:16:08.8]} 28. Ke3
{[%clk 0:16:19.2]} 28... Kf8 {[%clk 0:16:12.3]} 29. Rd7 {[%clk 0:16:21.8]} 29...
c5 {[%clk 0:16:09.6]} 30. Kd3 {[%clk 0:16:25]} 30... c4+ {[%clk 0:16:07.3]} 31.
Kc3 {[%clk 0:16:28.8]} 31... a6 {[%clk 0:16:11.6]} 32. Rd4 {[%clk 0:16:32.3]}
32... Ke7 {[%clk 0:16:13.4]} 33. Rxc4 {[%clk 0:16:35.7]} 33... Rxc4+ {[%clk
0:16:16.4]} 34. Kxc4 {[%clk 0:16:40.6]} 34... Kd7 {[%clk 0:16:19.6]} 35. Kc5
{[%clk 0:16:44.8]} 35... Kc7 {[%clk 0:16:23.5]} 36. a4 {[%clk 0:16:48.6]} 36...
g6 {[%clk 0:16:22.2]} 37. h3 {[%clk 0:16:52.7]} 37... Kb7 {[%clk 0:16:24.4]} 38.
g4 {[%clk 0:16:56.9]} 38... hxg4 {[%clk 0:16:27.8]} 39. hxg4 {[%clk 0:17:01.3]}
39... Kc7 {[%clk 0:16:32.2]} 40. f5 {[%clk 0:17:05.7]} 40... Kd7 {[%clk
0:16:36.8]} 41. fxg6 {[%clk 0:17:08.5]} 1-0

[Event "Live Chess"]
[Site "Chess.com"]
[Date "2023.09.16"]
[Round "-"]
[White "MateusLuan08"]
[Black "Megruo988"]
[Result "1-0"]
[WhiteElo "1576"]
[BlackElo "1701"]
[TimeControl "900+5"]
[EndTime "7:59:00 PDT"]
[Termination "MateusLuan08 venceu por desistência"]

1. e4 {[%clk 0:14:57.4]} 1... e5 {[%clk 0:15:03.6]} 2. Nf3 {[%clk 0:15:00.8]}
2... Nc6 {[%clk 0:15:08]} 3. d4 {[%clk 0:15:02.3]} 3... exd4 {[%clk 0:15:11.4]}
4. Nxd4 {[%clk 0:15:07.2]} 4... Nf6 {[%clk 0:15:15.7]} 5. Nc3 {[%clk 0:15:07.4]}
5... Bb4 {[%clk 0:15:18.7]} 6. Nxc6 {[%clk 0:15:05.5]} 6... bxc6 {[%clk
0:15:21.8]} 7. Bd3 {[%clk 0:15:08.5]} 7... O-O {[%clk 0:15:24.5]} 8. Bd2 {[%clk
0:15:10.7]} 8... Re8 {[%clk 0:15:21.6]} 9. O-O {[%clk 0:15:14.1]} 9... Bxc3
{[%clk 0:15:23.6]} 10. Bxc3 {[%clk 0:15:17.8]} 10... Nxe4 {[%clk 0:15:27.2]} 11.
Bxe4 {[%clk 0:15:17.1]} 11... Rxe4 {[%clk 0:15:30.2]} 12. Qf3 {[%clk 0:15:20.1]}
12... d5 {[%clk 0:15:29]} 13. Rfe1 {[%clk 0:15:19.7]} 13... Bg4 {[%clk
0:15:29.1]} 14. Qg3 {[%clk 0:15:20.2]} 14... Rxe1+ {[%clk 0:15:22]} 15. Rxe1
{[%clk 0:15:19.8]} 15... Qg5 {[%clk 0:15:24.8]} 16. h3 {[%clk 0:15:14.6]} 16...
d4 {[%clk 0:15:11.6]} 17. Bxd4 {[%clk 0:15:07.8]} 17... Qd2 {[%clk 0:15:12.7]}
18. Bc3 {[%clk 0:15:09]} 18... Qd7 {[%clk 0:15:06.2]} 1-0

[Event "Live Chess"]
[Site "Chess.com"]
[Date "2023.09.16"]
[Round "-"]
[White "VIAJEMCENTRODATERRA"]
[Black "abaakate"]
[Result "1/2-1/2"]
[WhiteElo "2002"]
[BlackElo "1907"]
[TimeControl "900+5"]
[EndTime "7:59:16 PDT"]
[Termination "Partida empatada por acordo"]

1. d4 {[%clk 0:15:02.2]} 1... Nf6 {[%clk 0:15:03.2]} 2. c4 {[%clk 0:15:05.8]}
2... e6 {[%clk 0:15:06.2]} 3. Nc3 {[%clk 0:15:09.8]} 3... d5 {[%clk 0:15:09.3]}
4. cxd5 {[%clk 0:15:14]} 4... exd5 {[%clk 0:15:14.2]} 5. Bg5 {[%clk 0:15:16.7]}
5... Be7 {[%clk 0:15:17.3]} 6. Qc2 {[%clk 0:15:19.5]} 6... O-O {[%clk
0:15:18.3]} 7. e3 {[%clk 0:15:22.2]} 7... c6 {[%clk 0:15:14.9]} 8. Bd3 {[%clk
0:15:23.7]} 8... h6 {[%clk 0:15:16]} 9. Bh4 {[%clk 0:15:26]} 9... Re8 {[%clk
0:15:06.1]} 10. Nf3 {[%clk 0:15:25.1]} 10... Bg4 {[%clk 0:15:08.3]} 11. Ne5
{[%clk 0:15:24.6]} 11... Be6 {[%clk 0:14:58.1]} 12. h3 {[%clk 0:15:04]} 12...
Nbd7 {[%clk 0:14:56.8]} 13. Nxd7 {[%clk 0:15:04]} 13... Qxd7 {[%clk 0:15:01.7]}
14. Bg3 {[%clk 0:15:06.7]} 14... Rac8 {[%clk 0:15:03.8]} 15. O-O {[%clk
0:15:03.3]} 15... c5 {[%clk 0:14:47.5]} 16. dxc5 {[%clk 0:15:05]} 16... Rxc5
{[%clk 0:14:48.3]} 17. Qd2 {[%clk 0:14:56.1]} 17... Rec8 {[%clk 0:14:41.2]} 18.
Ne2 {[%clk 0:14:45.6]} 18... Bf5 {[%clk 0:14:22.4]} 19. Rac1 {[%clk 0:14:29.5]}
19... Bxd3 {[%clk 0:13:57.3]} 20. Qxd3 {[%clk 0:14:31.5]} 20... Qc6 {[%clk
0:13:58.7]} 21. Qd2 {[%clk 0:14:25.8]} 1/2-1/2

[Event "Live Chess"]
[Site "Chess.com"]
[Date "2023.09.16"]
[Round "-"]
[White "ArthurMPRJ"]
[Black "ravypintodiniz"]
[Result "0-1"]
[WhiteElo "1486"]
[BlackElo "2065"]
[TimeControl "900+5"]
[EndTime "7:59:34 PDT"]
[Termination "ravypintodiniz venceu por desistência"]

1. d4 {[%clk 0:15:04]} 1... Nf6 {[%clk 0:15:03]} 2. c4 {[%clk 0:15:08.4]} 2...
g6 {[%clk 0:15:07.9]} 3. f3 {[%clk 0:15:11.8]} 3... Bg7 {[%clk 0:15:12.8]} 4. e4
{[%clk 0:15:15.6]} 4... d6 {[%clk 0:15:17.7]} 5. Nc3 {[%clk 0:15:19.6]} 5... O-O
{[%clk 0:15:21.8]} 6. Nge2 {[%clk 0:15:23.5]} 6... e5 {[%clk 0:15:26.4]} 7. Be3
{[%clk 0:15:22.1]} 7... Nbd7 {[%clk 0:15:29.9]} 8. Qd2 {[%clk 0:15:25.2]} 8...
c5 {[%clk 0:15:33.4]} 9. d5 {[%clk 0:15:25.5]} 9... a6 {[%clk 0:15:36.8]} 10.
Ng3 {[%clk 0:15:27.5]} 10... Ne8 {[%clk 0:15:39.2]} 11. Be2 {[%clk 0:15:02.4]}
11... f5 {[%clk 0:15:43]} 12. Bh6 {[%clk 0:15:06]} 12... f4 {[%clk 0:15:46.5]}
13. Bxg7 {[%clk 0:15:08.9]} 13... Nxg7 {[%clk 0:15:48.9]} 14. Nf1 {[%clk
0:15:10.5]} 14... Qh4+ {[%clk 0:15:53.4]} 15. g3 {[%clk 0:15:08.6]} 15... fxg3
{[%clk 0:15:57.2]} 16. Nxg3 {[%clk 0:15:09.4]} 16... Nh5 {[%clk 0:15:58.7]} 17.
O-O-O {[%clk 0:15:08.6]} 17... Qf4 {[%clk 0:15:56.2]} 18. Nxh5 {[%clk 0:15:08]}
18... Qxd2+ {[%clk 0:15:59.5]} 19. Kxd2 {[%clk 0:15:04.9]} 19... gxh5 {[%clk
0:16:04.4]} 20. Rhg1+ {[%clk 0:15:07.3]} 20... Kh8 {[%clk 0:16:09]} 21. Rg5
{[%clk 0:15:00.4]} 21... Nf6 {[%clk 0:16:11.7]} 22. Rdg1 {[%clk 0:14:58.2]}
22... Rg8 {[%clk 0:16:15.2]} 23. Rxg8+ {[%clk 0:14:56]} 23... Nxg8 {[%clk
0:16:20.1]} 24. Ke3 {[%clk 0:14:56.6]} 24... Bd7 {[%clk 0:16:23.1]} 25. f4
{[%clk 0:14:56.8]} 25... exf4+ {[%clk 0:16:28]} 26. Kxf4 {[%clk 0:15:00.9]}
26... Rf8+ {[%clk 0:16:32.9]} 27. Ke3 {[%clk 0:15:02.8]} 27... Nf6 {[%clk
0:16:36.2]} 28. Rf1 {[%clk 0:14:48.7]} 28... Bg4 {[%clk 0:16:32.5]} 29. e5
{[%clk 0:14:40.3]} 29... dxe5 {[%clk 0:16:33.5]} 30. Ne4 {[%clk 0:14:36.3]}
30... Bxe2 {[%clk 0:16:32.4]} 31. Rxf6 {[%clk 0:14:08.6]} 31... Rxf6 {[%clk
0:16:34.7]} 32. Nxf6 {[%clk 0:14:13.5]} 32... Kg7 {[%clk 0:16:30.7]} 33. Kxe2
{[%clk 0:14:02.8]} 33... Kxf6 {[%clk 0:16:33.8]} 34. Ke3 {[%clk 0:14:06.6]}
34... Ke7 {[%clk 0:16:36]} 35. a3 {[%clk 0:13:57.6]} 35... Kd6 {[%clk
0:16:40.9]} 36. b4 {[%clk 0:14:00.1]} 36... b5 {[%clk 0:16:42.5]} 37. bxc5+
{[%clk 0:13:42.6]} 37... Kxc5 {[%clk 0:16:42.6]} 38. cxb5 {[%clk 0:13:38.1]}
38... axb5 {[%clk 0:16:47.1]} 39. Ke4 {[%clk 0:13:41.9]} 39... Kd6 {[%clk
0:16:47.9]} 0-1

[Event "Live Chess"]
[Site "Chess.com"]
[Date "2023.09.16"]
[Round "-"]
[White "fernanndodod"]
[Black "daniel-drummond"]
[Result "1-0"]
[WhiteElo "1946"]
[BlackElo "1551"]
[TimeControl "900+5"]
[EndTime "8:00:03 PDT"]
[Termination "fernanndodod venceu por desistência"]

1. e4 {[%clk 0:15:03.5]} 1... e5 {[%clk 0:14:59.6]} 2. Nf3 {[%clk 0:15:07.7]}
2... Nc6 {[%clk 0:15:03.6]} 3. Bb5 {[%clk 0:15:11.9]} 3... a6 {[%clk 0:15:06.5]}
4. Ba4 {[%clk 0:15:15.9]} 4... Nf6 {[%clk 0:15:09.7]} 5. O-O {[%clk 0:15:18.9]}
5... Be7 {[%clk 0:15:12.5]} 6. Re1 {[%clk 0:15:22.2]} 6... d6 {[%clk 0:15:16.5]}
7. d4 {[%clk 0:15:22.8]} 7... b5 {[%clk 0:15:18.2]} 8. Bb3 {[%clk 0:15:21.3]}
8... Na5 {[%clk 0:15:18.4]} 9. dxe5 {[%clk 0:15:20.7]} 9... Nxb3 {[%clk
0:15:13.4]} 10. axb3 {[%clk 0:15:24.2]} 10... dxe5 {[%clk 0:15:08.8]} 11. Qxd8+
{[%clk 0:15:27]} 11... Bxd8 {[%clk 0:15:12.2]} 12. Nxe5 {[%clk 0:15:31.2]} 12...
O-O {[%clk 0:15:13.2]} 13. Nc6 {[%clk 0:15:32.9]} 13... Bb7 {[%clk 0:15:15.4]}
14. Nxd8 {[%clk 0:15:36.1]} 14... Raxd8 {[%clk 0:15:17.1]} 15. Bg5 {[%clk
0:15:38.8]} 15... Rfe8 {[%clk 0:15:10]} 16. Nc3 {[%clk 0:15:40.2]} 16... b4
{[%clk 0:15:12.3]} 17. Bxf6 {[%clk 0:15:43.7]} 17... gxf6 {[%clk 0:15:14.6]} 18.
Nd5 {[%clk 0:15:46.2]} 18... Bxd5 {[%clk 0:15:17]} 19. exd5 {[%clk 0:15:51.1]}
19... Rxe1+ {[%clk 0:15:19.9]} 20. Rxe1 {[%clk 0:15:54.5]} 20... Rxd5 {[%clk
0:15:24.1]} 21. Kf1 {[%clk 0:15:57.6]} 21... Rd2 {[%clk 0:15:26.9]} 22. Re2
{[%clk 0:16:00.3]} 22... Rd1+ {[%clk 0:15:29.1]} 23. Re1 {[%clk 0:16:04.4]}
23... Rd2 {[%clk 0:15:32.6]} 24. Rc1 {[%clk 0:16:07.3]} 24... c5 {[%clk
0:15:29]} 25. Ke1 {[%clk 0:16:10.6]} 25... Rd5 {[%clk 0:15:32.5]} 26. Ra1 {[%clk
0:16:13.7]} 26... Rd6 {[%clk 0:15:34.8]} 27. Ra5 {[%clk 0:16:18]} 27... Rc6
{[%clk 0:15:37.6]} 28. Ke2 {[%clk 0:16:18.2]} 28... Kf8 {[%clk 0:15:41.8]} 29.
Kd3 {[%clk 0:16:22]} 29... Ke7 {[%clk 0:15:43.9]} 30. c3 {[%clk 0:16:22.9]}
30... Kd6 {[%clk 0:15:45.5]} 31. cxb4 {[%clk 0:16:23.1]} 31... cxb4 {[%clk
0:15:50.4]} 32. Rh5 {[%clk 0:16:25.5]} 32... Rc1 {[%clk 0:15:36.6]} 33. Rxh7
{[%clk 0:16:20.6]} 33... Rf1 {[%clk 0:15:39.9]} 34. Ke2 {[%clk 0:16:09.8]} 34...
Rb1 {[%clk 0:15:40.8]} 35. Rxf7 {[%clk 0:16:13.4]} 35... Rxb2+ {[%clk
0:15:43.9]} 36. Ke1 {[%clk 0:16:17.9]} 36... Ke6 {[%clk 0:15:47.1]} 37. Ra7
{[%clk 0:16:21.4]} 37... Rb1+ {[%clk 0:15:46.6]} 38. Kd2 {[%clk 0:16:21.7]}
38... Rxb3 {[%clk 0:15:49]} 39. Rxa6+ {[%clk 0:16:25.1]} 39... Kf7 {[%clk
0:15:52]} 40. Ra2 {[%clk 0:16:27.3]} 40... Rb1 {[%clk 0:15:52.3]} 41. Kc2 {[%clk
0:16:25.9]} 41... Rg1 {[%clk 0:15:53.3]} 42. g3 {[%clk 0:16:26.8]} 42... Rg2
{[%clk 0:15:56.6]} 43. Kb3 {[%clk 0:16:31.3]} 43... Rxh2 {[%clk 0:15:56]} 44.
Kxb4 {[%clk 0:16:35.2]} 44... Kg6 {[%clk 0:15:59]} 45. Kc3 {[%clk 0:16:39.2]}
45... Kg5 {[%clk 0:16:02.1]} 46. Kd3 {[%clk 0:16:43]} 46... Kg4 {[%clk 0:16:05]}
47. Ke2 {[%clk 0:16:46.7]} 47... f5 {[%clk 0:16:07.9]} 48. Ra4+ {[%clk
0:16:50.4]} 48... Kg5 {[%clk 0:16:08.4]} 49. Kf3 {[%clk 0:16:52.9]} 49... Rh3
{[%clk 0:16:01.5]} 50. Ra8 {[%clk 0:16:55.3]} 50... f4 {[%clk 0:16:01.7]} 51.
Rg8+ {[%clk 0:16:35.3]} 51... Kf6 {[%clk 0:16:02.2]} 52. Rf8+ {[%clk 0:16:37.7]}
52... Ke5 {[%clk 0:16:05.2]} 53. Rxf4 {[%clk 0:16:42]} 53... Rh1 {[%clk
0:16:06.5]} 54. Ra4 {[%clk 0:16:24.9]} 54... Rf1 {[%clk 0:16:08.8]} 55. Ra5+
{[%clk 0:16:28.7]} 55... Kf6 {[%clk 0:16:11.9]} 56. Kg2 {[%clk 0:16:32.2]} 56...
Rd1 {[%clk 0:16:14.3]} 57. f4 {[%clk 0:16:36]} 57... Rd3 {[%clk 0:16:16.5]} 58.
Kh3 {[%clk 0:16:37.1]} 58... Re3 {[%clk 0:16:19.5]} 59. Kg4 {[%clk 0:16:40.5]}
59... Rd3 {[%clk 0:16:18.7]} 60. Ra6+ {[%clk 0:16:43.4]} 60... Kg7 {[%clk
0:16:21.5]} 61. Kh4 {[%clk 0:16:48.3]} 61... Rd5 {[%clk 0:16:22.1]} 62. g4
{[%clk 0:16:50.7]} 62... Rd4 {[%clk 0:16:25.7]} 63. f5 {[%clk 0:16:53]} 63...
Kf7 {[%clk 0:16:27]} 64. Kh5 {[%clk 0:16:55.6]} 64... Rd5 {[%clk 0:16:21.7]} 65.
Kg5 {[%clk 0:16:54.7]} 65... Rc5 {[%clk 0:16:18.4]} 66. Ra7+ {[%clk 0:16:58.7]}
66... Kg8 {[%clk 0:16:21.4]} 67. Kg6 {[%clk 0:17:01.7]} 67... Rc6+ {[%clk
0:16:24.2]} 68. f6 {[%clk 0:17:05.1]} 68... Rc8 {[%clk 0:16:23.8]} 69. g5 {[%clk
0:17:07]} 69... Rf8 {[%clk 0:16:23.2]} 70. Kh6 {[%clk 0:16:59]} 70... Kh8 {[%clk
0:16:23]} 71. Ra6 {[%clk 0:16:58.3]} 71... Rf7 {[%clk 0:16:24.9]} 72. g6 {[%clk
0:17:00.8]} 1-0

[Event "Live Chess"]
[Site "Chess.com"]
[Date "2023.09.16"]
[Round "-"]
[White "brenin12345"]
[Black "zxsimon"]
[Result "0-1"]
[WhiteElo "768"]
[BlackElo "1474"]
[TimeControl "900+5"]
[EndTime "8:00:08 PDT"]
[Termination "zxsimon venceu por xeque-mate"]

1. e4 {[%clk 0:15:03.5]} 1... c5 {[%clk 0:15:03.5]} 2. f4 {[%clk 0:15:06.6]}
2... Nc6 {[%clk 0:15:07.1]} 3. Nf3 {[%clk 0:15:07.9]} 3... g6 {[%clk 0:15:11.3]}
4. d4 {[%clk 0:15:11.1]} 4... cxd4 {[%clk 0:15:14.8]} 5. Nxd4 {[%clk 0:15:15.2]}
5... Bg7 {[%clk 0:15:19.1]} 6. Nxc6 {[%clk 0:15:17.2]} 6... bxc6 {[%clk
0:15:22.7]} 7. Nc3 {[%clk 0:15:18.8]} 7... Qa5 {[%clk 0:15:21.5]} 8. Bd2 {[%clk
0:14:56.5]} 8... Qc7 {[%clk 0:15:21.1]} 9. e5 {[%clk 0:14:42.1]} 9... e6 {[%clk
0:15:21.5]} 10. Qf3 {[%clk 0:14:27.9]} 10... Bb7 {[%clk 0:15:21.9]} 11. Qd3
{[%clk 0:14:05.7]} 11... Ne7 {[%clk 0:15:22.3]} 12. g4 {[%clk 0:14:03.8]} 12...
c5 {[%clk 0:15:23]} 13. Rg1 {[%clk 0:12:43.6]} 13... Nd5 {[%clk 0:15:21.8]} 14.
Bg2 {[%clk 0:12:40.1]} 14... Nxc3 {[%clk 0:15:21.8]} 15. Bxb7 {[%clk 0:12:30.4]}
15... Qxb7 {[%clk 0:15:21.9]} 16. Qxc3 {[%clk 0:12:29.5]} 16... Rc8 {[%clk
0:15:17.3]} 17. O-O-O {[%clk 0:12:21.1]} 17... d6 {[%clk 0:15:16.1]} 18. exd6
{[%clk 0:12:22.6]} 18... Bxc3 {[%clk 0:15:18.1]} 19. Bxc3 {[%clk 0:12:24.9]}
19... Rg8 {[%clk 0:15:19.2]} 20. d7+ {[%clk 0:12:25.9]} 20... Ke7 {[%clk
0:15:06]} 21. dxc8=Q {[%clk 0:12:09.7]} 21... Rxc8 {[%clk 0:15:04.5]} 22. g5
{[%clk 0:12:12.8]} 22... Rb8 {[%clk 0:15:02.1]} 23. Bf6+ {[%clk 0:12:16.5]}
23... Kf8 {[%clk 0:15:04.8]} 24. b3 {[%clk 0:12:15.5]} 24... a5 {[%clk
0:14:46.2]} 25. Be5 {[%clk 0:12:14.9]} 25... Rc8 {[%clk 0:14:44.5]} 26. h4
{[%clk 0:11:45.3]} 26... c4 {[%clk 0:14:45.4]} 27. Kd2 {[%clk 0:11:43.5]} 27...
Rd8+ {[%clk 0:14:37.6]} 28. Ke2 {[%clk 0:11:41.9]} 28... Qe4+ {[%clk 0:14:38.3]}
29. Kf2 {[%clk 0:11:43.5]} 29... Qxc2+ {[%clk 0:14:32.6]} 30. Kg3 {[%clk
0:11:45.4]} 30... Rxd1 {[%clk 0:14:34.6]} 31. Rxd1 {[%clk 0:11:49.8]} 31... Qxd1
{[%clk 0:14:36.8]} 32. Kh3 {[%clk 0:11:53.3]} 32... Qf3+ {[%clk 0:14:39.1]} 33.
Kh2 {[%clk 0:11:57]} 33... cxb3 {[%clk 0:14:42.8]} 34. Kg1 {[%clk 0:12:00.5]}
34... bxa2 {[%clk 0:14:45.6]} 35. Kh2 {[%clk 0:12:04.1]} 35... Qe2+ {[%clk
0:14:44.2]} 36. Kg1 {[%clk 0:12:05.4]} 36... Qxe5 {[%clk 0:14:46.7]} 37. fxe5
{[%clk 0:12:04.7]} 37... a1=Q+ {[%clk 0:14:50.7]} 38. Kf2 {[%clk 0:12:08.4]}
38... Qb2+ {[%clk 0:14:54.7]} 39. Ke3 {[%clk 0:12:12.3]} 39... a4 {[%clk
0:14:59.3]} 40. Kf4 {[%clk 0:12:14.2]} 40... a3 {[%clk 0:15:04.2]} 41. Kg4
{[%clk 0:12:18.3]} 41... a2 {[%clk 0:15:08.8]} 42. h5 {[%clk 0:12:22.8]} 42...
a1=Q {[%clk 0:15:10.7]} 43. hxg6 {[%clk 0:12:26.5]} 43... Qd4+ {[%clk
0:15:12.8]} 44. Kh5 {[%clk 0:12:22.6]} 44... Qh1# {[%clk 0:15:15.1]} 0-1